Workbook

Sheet Inhalt
A1: Torten-Umrechnungs-Tool | N1: 225
A2: =Änderungsnachweis!A1 -> © 2016-2021 V08 | Einfach Backen - Marcel Paa
A4: Herzlichen Dank für die Nutzung des "Torten-Umrechnungs-Tools" - ich wünsche Dir weiterhin viel Erfolg beim Backen & Dekorieren, mit backfrischen Grüssen
A6: Marcel Paa
A9: Beim Öffnen der Datei unbedingt "Makros aktivieren" wählen
B12: (Bitte auf Knopf klicken, um direkt in die entsprechende Mappe zu gelangen)
E14: Originalrezept ist bekannt In dieser Mappe kannst Du einzelne Originalrezepte der Torten in andere Grössen und Formen umrechnen. Gib die Originalgrösse (Durchmesser/Höhe oder Länge/Breite/Höhe) inkl. Zutaten und die Wunschgrösse (Durchmesser/Höhe oder Länge/Breite/Höhe) ein und das Tool rechnet Dir automatisch die benötigten Zutaten in die neue Menge um.
E21: Grösse der Torte ist bekannt Hier kannst Du die Grösse Deiner Torten kalkulieren: d.h. Du weisst, wie gross Du die Torten machen möchtest, und das Tool rechnet Dir aus, wieviele Portionen Deine Wunschtorten ergeben. Es wird zwischen runden und eckigen Torten unterschieden.
E28: Anzahl Portionen sind bekannt Hier kannst Du die Portionen der Torten kalkulieren: d.h. Du weisst, wieviele Portionen Du erhalten möchtest und das Tool rechnet Dir aus, wie grosse Deine Wunschtorten sein sollten.
E35: Aufbau mehrstöckiger Torten In dieser Mappe kannst Du für mehrstöckige Torten mit den Tortengrössen "spielen": d.h. Du gibst den Durchmesser (bzw. Länge und Breite) der untersten Torte und die Höhe jeder einzelnen Etage ein und das Tool berechnet Dir die ungefähre Anzahl Portionen.
E42: Auflistung von Torten-Portionen je Tortengrösse In dieser Mappe findest Du eine Auflistung von Torten von 4 bis 50cm Durchmesser und einer Höhe von 6 bis 14cm, wo Du die ungefähre Anzahl Portionen (Minimum und Maximum) ablesen kannst. In dieser Mappe können keine Eingaben gemacht werden.
E49: Frequently Asked Questions Unter "FAQ (Frequently Asked Questions)" findest Du Antworten auf verschiedene Fragen; solltest Du weitere Fragen haben, lass es mich bitte wissen, so dass ich diese Mappe entsprechend nachführen kann. In dieser Mappe können keine Eingaben gemacht werden.

Sheet Umrechnung
A1: Torten-Umrechnung | T1: 225
A2: =Änderungsnachweis!A1 -> © 2016-2021 V08 | Einfach Backen - Marcel Paa
A3: Hinweise
A4: · | B4: nur in den hell markierten Felder sind Eingaben möglich; in den dunkel gefärbten Zellen erscheinen die berechneten Resultate (diese können nicht verändert werden)
A5: · | B5: in der Rubrik "1 Originalrezept" können die Masse des Originalrezeptes als Berechnungsgrundlage eingegeben werden
A6: · | B6: in der Rubrik "2 Wunschrezept" können die Masse des Wunschrezeptes eingegeben werden
A7: · | B7: in der Rubrik "3 Ergebnis/Faktor" erscheint der berechnete Faktor zur Rezept-Umrechnung (hier sind keine Eingaben möglich)
A8: · | B8: in der Rubrik "4 Rezept-Umrechnung" werden die Zutaten und die Mengen des Originalrezeptes eingeben, diese werden automatisch auf die Wunschgrösse der Torte umgerechnet
A10: 1 | B10: Originalrezept | L10: 2 | M10: Wunschrezept
A11: a) | B11: Springform, Muffins und andere runde Backformen | L11: a) | M11: Springform, Muffins und andere runde Backformen
B12: Durchmesser in cm | H12: =IF(J12="","","rund") ->  | K12: =J12/2 -> 0 | M12: Durchmesser in cm | P12: =IF(R12="","","rund") ->  | S12: =R12/2 -> 0
B13: Höhe in cm | G13: =IF(J13="",0,IF(H12="rund",((J12/2)*(J12/2)*3.14*J13/$T$1)-1)) -> 0 | H13: =IF(J13="",0,IF(H12="rund",((J12/2)*(J12/2)*3.14*J13/$T$1)+1)) -> 0 | K13: =K12*K12*3.14159265359*J13 -> 0 | M13: Höhe in cm | O13: =IF(R13="",0,IF(P12="rund",((R12/2)*(R12/2)*3.14*R13/$T$1)-1)) -> 0 | P13: =IF(R13="",0,IF(P12="rund",((R12/2)*(R12/2)*3.14*R13/$T$1)+1)) -> 0 | S13: =S12*S12*3.14159265359*R13 -> 0
A14: b) | B14: Backrahmen, Blechkuchen eckig | L14: b) | M14: Backrahmen, Blechkuchen eckig
B15: Länge in cm | H15: =IF(J15="","","eckig") ->  | M15: Länge in cm | P15: =IF(R15="","","eckig") -> 
B16: Breite in cm | M16: Breite in cm
B17: Höhe in cm | G17: =IF(J17="",0,IF(H15="eckig",J15*J16*J17/$T$1-1)) -> 0 | H17: =IF(J17="",0,IF(H15="eckig",J15*J16*J17/$T$1+1)) -> 0 | K17: =J15*J16*J17 -> 0 | M17: Höhe in cm | O17: =IF(R17="",0,IF(P15="eckig",R15*R16*R17/$T$1-1)) -> 0 | P17: =IF(R17="",0,IF(P15="eckig",R15*R16*R17/$T$1+1)) -> 0 | S17: =R15*R16*R17 -> 0
A18: c) | B18: Andere Backformen, Kugel, Kegel etc. | L18: c) | M18: Ander Backformen, Kugel, Kegel etc.
B19: Fülle die Backform mit Zucker etwa 1cm unter den Rand und trage das Gewicht in Gramm ein | J19: =IF(J20="","","andere") ->  | M19: Fülle die Backform mit Zucker etwa 1cm unter den Rand und trage das Gewicht in Gramm ein | R19: =IF(R20="","","andere") -> 
B20: Gewicht in g | G20: =IF(J20="",0,IF(J19="andere",J20/$T$1-1,"")) -> 0 | H20: =IF(J20="",0,IF(J19="andere",J20/$T$1+1,"")) -> 0 | M20: Gewicht in g | O20: =IF(R20="",0,IF(R19="andere",R20/$T$1-1,"")) -> 0 | P20: =IF(R20="",0,IF(R19="andere",R20/$T$1+1,"")) -> 0
G22: ungefähre Anzahl Portionen/Stück | H22: =IF(SUM(J12:J17)="","",SUM(G13+G17+G20)) -> 0 | I22: bis | J22: =SUM(H13+H17+H20) -> 0 | O22: ungefähre Anzahl Portionen/Stück | P22: =SUM(O13+O17+O20) -> 0 | Q22: bis | R22: =SUM(P13+P17+P20) -> 0
A24: 3 | B24: Ergebnis/Faktor | L24: 4 | M24: Rezept-Umrechnung
B25: Original | E25: ð | F25: Wunsch | M25: Bitte die Daten in den orangen Feldern mit den eigenen überschreiben | Q25: x Faktor | R25: =SUM(J28:J38) -> 0
A26: a) | B26: Springform, Muffins und andere runde Backformen | M26: Original in g | N26: Einheit | O26: Zutaten | P26: Bemerkungen | R26: Wunsch in g
B27: Springform, Muffins, Backformen rund | E27: ð | F27: Springform, Backformen rund | N27: Stk | O27: Eier | P27: =IF(M27="","",IF(O27="Eier","1 Stk = ca. 50 g","")) ->  | R27: =M27*R$25 -> 0
B28: Springform, Muffins, Backformen rund | E28: ð | F28: Backrahmen, Blechkuchen eckig | J28: =IF(K13=0,0,S13/K13) -> 0 | N28: g | O28: Zucker | P28: =IF(M28="","",IF(O28="Eier","1 Stk = 50 g","")) ->  | R28: 0
B29: Springform, Muffins, Backformen rund | E29: ð | F29: Andere Backformen, Kugel, Kegel etc. | J29: =IF(K13=0,0,S17/K13) -> 0 | N29: etwas | O29: Zitronenabrieb | R29: 0
A30: b) | B30: Backrahmen, Blechkuchen eckig | J30: =IF(K13=0,0,R20/K13) -> 0 | N30: Prise | O30: Salz | R30: 0
B31: Backrahmen, Blechkuchen eckig | E31: ð | F31: Springform, Backformen rund | N31: g | O31: Butter | R31: 0
B32: Backrahmen, Blechkuchen eckig | E32: ð | F32: Backrahmen, Blechkuchen eckig | J32: =IF(K17=0,0,S13/K17) -> 0 | N32: g | O32: Weissmehl | R32: 0
B33: Backrahmen, Blechkuchen eckig | E33: ð | F33: Andere Backformen, Kugel, Kegel etc. | J33: =IF(K17=0,0,S17/K17) -> 0 | R33: 0
A34: c) | B34: Andere Backformen, Kugel, Kegel etc. | J34: =IF(K17=0,0,R20/K17) -> 0 | R34: 0
B35: Ander Backformen, Kugel, Kegel etc. | E35: ð | F35: Springform, Backformen rund | R35: 0
B36: Ander Backformen, Kugel, Kegel etc. | E36: ð | F36: Backrahmen, Blechkuchen eckig | J36: =IF(J20=0,0,S13/J20) -> 0 | R36: 0
B37: Ander Backformen, Kugel, Kegel etc. | E37: ð | F37: Andere Backformen, Kugel, Kegel etc. | J37: =IF(J20=0,0,S17/J20) -> 0 | R37: 0
J38: =IF(J20=0,0,R20/J20) -> 0 | R38: 0

Sheet Portionen-Kalkulator
A1: Portionen-Kalkulator | T1: 225
A2: =Änderungsnachweis!A1 -> © 2016-2021 V08 | Einfach Backen - Marcel Paa
A3: Hinweise
A4: · | B4: Hier kannst Du durch die Eingaben von Durchmesser und Tortenhöhe kalkulieren, welchen Durchmesser die gewünschte Torte in etwa haben müssen, d.h. für wieviele Portionen/Stück Deine Torte
A5: · | B5: reichen würden. So kannst Du z.B. eine mehrstöckige Torte einfach kalkulieren - Dies sind Richtwerte, welche je nach Torte/Füllung variieren können. Alle Angaben ohne Gewähr.
A7: a) | B7: Springform, Muffins und andere runde Backformen
P8: Min | R8: Max
B9: Torten Ø in cm | I9: Torten-Höhe cm | O9: ergibt Portionen/Stück | P9: =IF($D9="",0,IF($J9="",0,($D9/2)*($D9/2)*$T$9*$J9/$T$1-1)) -> 0 | Q9: bis | R9: =IF($D9="",0,IF($J9="",0,($D9/2)*($D9/2)*$T$9*$J9/$T$1+1)) -> 0 | T9: 3.14
B11: Torten Ø in cm | I11: Torten-Höhe cm | O11: ergibt Portionen/Stück | P11: =IF($D11="",0,IF($J11="",0,($D11/2)*($D11/2)*$T$9*$J11/$T$1-1)) -> 0 | Q11: bis | R11: =IF($D11="",0,IF($J11="",0,($D11/2)*($D11/2)*$T$9*$J11/$T$1+1)) -> 0
B13: Torten Ø in cm | I13: Torten-Höhe cm | O13: ergibt Portionen/Stück | P13: =IF($D13="",0,IF($J13="",0,($D13/2)*($D13/2)*$T$9*$J13/$T$1-1)) -> 0 | Q13: bis | R13: =IF($D13="",0,IF($J13="",0,($D13/2)*($D13/2)*$T$9*$J13/$T$1+1)) -> 0
B15: Torten Ø in cm | I15: Torten-Höhe cm | O15: ergibt Portionen/Stück | P15: =IF($D15="",0,IF($J15="",0,($D15/2)*($D15/2)*$T$9*$J15/$T$1-1)) -> 0 | Q15: bis | R15: =IF($D15="",0,IF($J15="",0,($D15/2)*($D15/2)*$T$9*$J15/$T$1+1)) -> 0
B17: Torten Ø in cm | I17: Torten-Höhe cm | O17: ergibt Portionen/Stück | P17: =IF($D17="",0,IF($J17="",0,($D17/2)*($D17/2)*$T$9*$J17/$T$1-1)) -> 0 | Q17: bis | R17: =IF($D17="",0,IF($J17="",0,($D17/2)*($D17/2)*$T$9*$J17/$T$1+1)) -> 0
O19: Total Portionen/Stück | P19: =SUM(P9:P17) -> 0 | Q19: bis | R19: =SUM(R9:R17) -> 0
A21: b) | B21: Backrahmen, Blechkuchen eckig
P22: Min | R22: Max
B23: Torten-Breite cm | F23: Torten-Länge cm | I23: Torten-Höhe cm | O23: ergibt Portionen/Stück | P23: =IF($D23="",0,IF($G23="",0,IF($J23="",0,$D23*$G23*$J23/$T$1-1))) -> 0 | Q23: bis | R23: =IF($D23="",0,IF($G23="",0,IF($J23="",0,$D23*$G23*$J23/$T$1+1))) -> 0
B25: Torten-Breite cm | F25: Torten-Länge cm | I25: Torten-Höhe cm | O25: ergibt Portionen/Stück | P25: =IF($D25="",0,IF($G25="",0,IF($J25="",0,$D25*$G25*$J25/$T$1-1))) -> 0 | Q25: bis | R25: =IF($D25="",0,IF($G25="",0,IF($J25="",0,$D25*$G25*$J25/$T$1+1))) -> 0
B27: Torten-Breite cm | F27: Torten-Länge cm | I27: Torten-Höhe cm | O27: ergibt Portionen/Stück | P27: =IF($D27="",0,IF($G27="",0,IF($J27="",0,$D27*$G27*$J27/$T$1-1))) -> 0 | Q27: bis | R27: =IF($D27="",0,IF($G27="",0,IF($J27="",0,$D27*$G27*$J27/$T$1+1))) -> 0
B29: Torten-Breite cm | F29: Torten-Länge cm | I29: Torten-Höhe cm | O29: ergibt Portionen/Stück | P29: =IF($D29="",0,IF($G29="",0,IF($J29="",0,$D29*$G29*$J29/$T$1-1))) -> 0 | Q29: bis | R29: =IF($D29="",0,IF($G29="",0,IF($J29="",0,$D29*$G29*$J29/$T$1+1))) -> 0
B31: Torten-Breite cm | F31: Torten-Länge cm | I31: Torten-Höhe cm | O31: ergibt Portionen/Stück | P31: =IF($D31="",0,IF($G31="",0,IF($J31="",0,$D31*$G31*$J31/$T$1-1))) -> 0 | Q31: bis | R31: =IF($D31="",0,IF($G31="",0,IF($J31="",0,$D31*$G31*$J31/$T$1+1))) -> 0
O33: Total Portionen/Stück | P33: =SUM(P23:P31) -> 0 | Q33: bis | R33: =SUM(R23:R31) -> 0

Sheet Torten-Kalkulator
A1: Torten-Kalkulator | T1: 225
A2: =Änderungsnachweis!A1 -> © 2016-2021 V08 | Einfach Backen - Marcel Paa
A3: Hinweise
A4: · | B4: Hier kannst Du die ungefähre Grösse der Torte (Durchmesser oder Länge/Breite) berechnen, wenn die Anzahl Tortenstücke bekannt ist
A5: · | B5: Dies sind Richtwerte, welche je nach Torte/Füllung variieren können. Alle Angaben ohne Gewähr.
A7: a) | B7: Springform, Muffins und andere runde Backformen
B8: Du weisst wieviele Portionen Du benötigst, aber nicht welchen Durchmesser die Torte haben sollte?
B9: Hier kannst Du durch die Eingaben von Anzahl Portionen und gewünschter Torten-Höhe berechnen, welchen Durchmesser die Torte haben sollten .
P10: Min | R10: Max
B11: gewünschte Anzahl Port./Stk | M11: Torten-Höhe cm | N11: 6 | O11: Torten Ø in cm | P11: =IF(E11="",0,IF(ISODD(ROUNDUP($T11,0)),1,0)+ROUNDUP($T11,0)-2) -> 0 | Q11: bis | R11: =IF(E11="",0,IF(ISODD(ROUNDUP($T11,0)),1,0)+ROUNDUP($T11,0)) -> 0 | T11: =IF(E11="",0,SQRT(E11*$T$1/N11/3.14)*2) -> 0
E13: =IF($E$11="","",$E$11) ->  | M13: Torten-Höhe cm | N13: 8 | O13: Torten Ø in cm | P13: =IF(E13="",0,IF(ISODD(ROUNDUP($T13,0)),1,0)+ROUNDUP($T13,0)-2) -> 0 | Q13: bis | R13: =IF(E13="",0,IF(ISODD(ROUNDUP($T13,0)),1,0)+ROUNDUP($T13,0)) -> 0 | T13: =IF(E13="",0,SQRT(E13*$T$1/N13/3.14)*2) -> 0
E15: =IF($E$11="","",$E$11) ->  | M15: Torten-Höhe cm | N15: 10 | O15: Torten Ø in cm | P15: =IF(E15="",0,IF(ISODD(ROUNDUP($T15,0)),1,0)+ROUNDUP($T15,0)-2) -> 0 | Q15: bis | R15: =IF(E15="",0,IF(ISODD(ROUNDUP($T15,0)),1,0)+ROUNDUP($T15,0)) -> 0 | T15: =IF(E15="",0,SQRT(E15*$T$1/N15/3.14)*2) -> 0
E17: =IF($E$11="","",$E$11) ->  | M17: Torten-Höhe cm | N17: 12 | O17: Torten Ø in cm | P17: =IF(E17="",0,IF(ISODD(ROUNDUP($T17,0)),1,0)+ROUNDUP($T17,0)-2) -> 0 | Q17: bis | R17: =IF(E17="",0,IF(ISODD(ROUNDUP($T17,0)),1,0)+ROUNDUP($T17,0)) -> 0 | T17: =IF(E17="",0,SQRT(E17*$T$1/N17/3.14)*2) -> 0
E19: =IF($E$11="","",$E$11) ->  | M19: Torten-Höhe cm | N19: 14 | O19: Torten Ø in cm | P19: =IF(E19="",0,IF(ISODD(ROUNDUP($T19,0)),1,0)+ROUNDUP($T19,0)-2) -> 0 | Q19: bis | R19: =IF(E19="",0,IF(ISODD(ROUNDUP($T19,0)),1,0)+ROUNDUP($T19,0)) -> 0 | T19: =IF(E19="",0,SQRT(E19*$T$1/N19/3.14)*2) -> 0
A21: b) | B21: Backrahmen, Blechkuchen eckig
B22: Du weisst wieviele Portionen Du benötigst, wie hoch und wie breit die Torte sein sollte, aber nicht wie lang sie sein sollte?
B23: Hier kannst Du durch die Eingaben von Anzahl Portionen , Torten-Höhe und Torten-Breite, die Länge der Torte berechnen.
P24: Min | R24: Max
B25: gewünschte Anzahl Port./Stk | I25: Torten-Breite cm | M25: Torten-Höhe cm | N25: 6 | O25: Torten-Länge cm | P25: =IF(E25="","",IF(J25="","",$T$1*E25/N25/J25-1)) ->  | Q25: bis | R25: =IF(E25="","",IF(J25="","",$T$1*E25/N25/J25+1)) -> 
E27: =IF($E$25="","",$E$25) ->  | J27: =IF($J$25="","",$J$25) ->  | M27: Torten-Höhe cm | N27: 8 | O27: Torten-Länge cm | P27: =IF(E27="","",IF(J27="","",$T$1*E27/N27/J27-1)) ->  | Q27: bis | R27: =IF(E27="","",IF(J27="","",$T$1*E27/N27/J27+1)) -> 
E29: =IF($E$25="","",$E$25) ->  | J29: =IF($J$25="","",$J$25) ->  | M29: Torten-Höhe cm | N29: 10 | O29: Torten-Länge cm | P29: =IF(E29="","",IF(J29="","",$T$1*E29/N29/J29-1)) ->  | Q29: bis | R29: =IF(E29="","",IF(J29="","",$T$1*E29/N29/J29+1)) -> 
E31: =IF($E$25="","",$E$25) ->  | J31: =IF($J$25="","",$J$25) ->  | M31: Torten-Höhe cm | N31: 12 | O31: Torten-Länge cm | P31: =IF(E31="","",IF(J31="","",$T$1*E31/N31/J31-1)) ->  | Q31: bis | R31: =IF(E31="","",IF(J31="","",$T$1*E31/N31/J31+1)) -> 
E33: =IF($E$25="","",$E$25) ->  | J33: =IF($J$25="","",$J$25) ->  | M33: Torten-Höhe cm | N33: 14 | O33: Torten-Länge cm | P33: =IF(E33="","",IF(J33="","",$T$1*E33/N33/J33-1)) ->  | Q33: bis | R33: =IF(E33="","",IF(J33="","",$T$1*E33/N33/J33+1)) -> 
A35: c) | B35: Andere Backformen, Kugel, Kegel etc.
B36: Du weisst wieviele Portionen Du benötigst, aber nicht welche Backformgrösse (Kugel, Kegel etc.) Du dazu braucht?
B37: Hier kannst Du durch die Eingabe von Anzahl Portionen das Gewicht der Tortenmasse berechnen. Nimm diejenige Form zum Backen Deiner Torte, wo das berechnete Gewicht an Zucker bis ca. 1 cm unter den Rand reinpasst.
P38: Min | R38: Max
B39: gewünschte Anzahl Port./Stk | O39: Gewicht in g | P39: =IF(E39="","",$E$39*$T$1-100) ->  | Q39: bis | R39: =IF(E39="","",$E$39*$T$1+100) -> 

Sheet Torten-Aufbau
A1: Hochzeits- und Motivtorten Aufbau | N1: 225
A2: =Änderungsnachweis!A1 -> © 2016-2021 V08 | Einfach Backen - Marcel Paa
A3: Hinweise
A4: · | B4: um einen proportional ausgeglichenen Aufbau zu erhalten sollte bei mehrstöckigen Torten die nächst höhere immer mindestens 3-4cm pro Seite kleiner sein
A5: · | B5: davon ausgehend dass dieser Abstand bei jeder Etage der selbe ist, wird dies durch die Eingabe des Wertes a) für jede Etage automatisch übernommen und so die neuen, kleineren Werte der darauffolgenden Etage automatisch berechnet
A6: · | B6: die Höhe der einzelnen Etagen können, dürfen durchaus unterschiedlich sein; daher ist bei jeder Etage die Höhe anzugeben
A7: · | B7: wenn nebst der Torte noch ein Dessertbuffet angeboten wird, werden die Tortenstücke kleiner geschnitten - demzufolge sollte mit einer kleineren Anzahl Tortenstücke gerechnet werden. z.B. bei 100 Gästen mit Torte und Dessertbuffet kann mit einer etwas kleineren Torte mit 80 Portionen gerechnet werden.
A9: Mehrstöckige runde Torten
H12: Abstand pro Seite bis zur nächsten Torte | N12: =IF(L12="Eingabe?","ab der 2. Torte sollte jede darauffolgende im Durchmesser total 5-10 cm kleiner sein; dies wird nach der Eingabe der Werte der untersten Torte automatisch so berechnet",CONCATENATE("ab der 2. Torte sollte jede darauffolgende im Durchmesser total ",L12*2," cm kleiner sein; dies wird nach der Eingabe der Werte der untersten Torte automatisch so berechnet")) -> ab der 2. Torte sollte jede darauffolgende im Durchmesser total 0 cm kleiner sein; dies wird nach der Eingabe der Werte der untersten Torte automatisch so berechnet
H16: Höhe unterste Torte
H17: Durchmesser
K18: =IF(K16="","",IF(K17="","",((K17/2)*(K17/2)*3.14*K16/$N$1)-1)) ->  | L18: =IF(K16="","",IF(K17="","",((K17/2)*(K17/2)*3.14*K16/$N$1)+1)) ->  | O18: =IF(K18="",0,K18) -> 0 | P18: =IF(L18="",0,L18) -> 0
H21: Höhe zweitunterste Torte | N21: Der Durchmesser der Torte wird automatisch berechnet: Durchmesser der untersten Torte minus 2x Abstand zur nächsten Torte gemäss Eingabe unter a)
H22: Durchmesser | K22: =IF(K21="","",IF($L$12="","",IF($K$17="","",K17-(2*$L$12)))) -> 
K23: =IF(K21="","",IF(K22="","",((K22/2)*(K22/2)*3.14*K21/$N$1)-1)) ->  | L23: =IF(K21="","",IF(K22="","",((K22/2)*(K22/2)*3.14*K21/$N$1)+1)) ->  | O23: =IF(K23="",0,K23) -> 0 | P23: =IF(L23="",0,L23) -> 0
H27: Höhe zweitoberste Torte | N27: Der Durchmesser der Torte wird automatisch berechnet: Durchmesser der untersten Torte minus 2x Abstand zur nächsten Torte gemäss Eingabe unter a)
H28: Durchmesser | K28: =IF(K27="","",IF($L$12="","",IF($K$17="","",K22-(2*$L$12)))) -> 
K29: =IF(K27="","",IF(K28="","",((K28/2)*(K28/2)*3.14*K27/$N$1)-1)) ->  | L29: =IF(K27="","",IF(K28="","",((K28/2)*(K28/2)*3.14*K27/$N$1)+1)) ->  | O29: =IF(K29="",0,K29) -> 0 | P29: =IF(L29="",0,L29) -> 0
H33: Höhe oberste Torte | N33: Der Durchmesser der Torte wird automatisch berechnet: Durchmesser der untersten Torte minus 2x Abstand zur nächsten Torte gemäss Eingabe unter a)
H34: Durchmesser | K34: =IF(K33="","",IF($L$12="","",IF($K$17="","",K28-(2*$L$12)))) -> 
K35: =IF(K33="","",IF(K34="","",((K34/2)*(K34/2)*3.14*K33/$N$1)-1)) ->  | L35: =IF(K33="","",IF(K34="","",((K34/2)*(K34/2)*3.14*K33/$N$1)+1)) ->  | O35: =IF(K35="",0,K35) -> 0 | P35: =IF(L35="",0,L35) -> 0
H38: Total Portionen/Stück | K38: =IF($L$12="","",SUM(O18:O35)) ->  | L38: =IF($L$12="","",SUM(P18:P35)) ->  | O38: =IF(K38="",0,K38) -> 0 | P38: =IF(L38="",0,L38) -> 0
A45: Mehrstöckige eckige Torten
H48: Abstand je Seite bis zur nächsten Torte | N48: =IF(L48="Eingabe?","ab der 2. Torte sollte jede darauffolgende in der Fläche total 5-10 cm kleiner sein; dies wird nach der Eingabe der Werte der untersten Torte automatisch so berechnet",CONCATENATE("ab der 2. Torte sollte jede darauffolgende in der Fläche total ",L48*2," cm kleiner sein; dies wird nach der Eingabe der Werte der untersten Torte automatisch so berechnet")) -> ab der 2. Torte sollte jede darauffolgende in der Fläche total 0 cm kleiner sein; dies wird nach der Eingabe der Werte der untersten Torte automatisch so berechnet
H52: Höhe unterste Torte
H53: Länge
H54: Breite
K55: =IF(K52="","",$N55/$N$1-1) ->  | L55: =IF(K52="","",$N55/$N$1+1) ->  | N55: =K52*K53*K54 -> 0 | O55: =IF(K55="",0,K55) -> 0 | P55: =IF(L55="",0,L55) -> 0
H57: Höhe zweitunterste Torte | N57: Länge/Breite der Torte wird automatisch berechnet: Länge/Breite der untersten Torte minus 2x Abstand zur nächsten Torte gemäss Eingabe unter a)
H58: Länge | K58: =IF(K57="","",IF(K53="","",K53-(2*$L$48))) -> 
H59: Breite | K59: =IF(K57="","",IF(K54="","",K54-(2*$L$48))) -> 
K60: =IF(K58="","",IF(K59="","",IF(K57="","",$N60/$N$1-1))) ->  | L60: =IF(K58="","",IF(K59="","",IF(K57="","",$N60/$N$1+1))) ->  | N60: =K57*K58*K59 ->  | O60: =IF(K60="",0,K60) -> 0 | P60: =IF(L60="",0,L60) -> 0
H63: Höhe zweitoberste Torte | N63: Länge/Breite der Torte wird automatisch berechnet: Länge/Breite der zweituntersten Torte minus 2x Abstand zur nächsten Torte gemäss Eingabe unter a)
H64: Länge | K64: =IF(K63="","",IF(K58="","",K58-(2*$L$48))) -> 
H65: Breite | K65: =IF(K63="","",IF(K59="","",K59-(2*$L$48))) -> 
K66: =IF(K64="","",IF(K65="","",IF(K63="","",$N66/$N$1-1))) ->  | L66: =IF(K64="","",IF(K65="","",IF(K63="","",$N66/$N$1+1))) ->  | N66: =K63*K64*K65 ->  | O66: =IF(K66="",0,K66) -> 0 | P66: =IF(L66="",0,L66) -> 0
H69: Höhe oberste Torte | N69: Länge/Breite der Torte wird automatisch berechnet: Länge/Breite der zweitobersten Torte minus 2x Abstand zur nächsten Torte gemäss Eingabe unter a)
H70: Länge | K70: =IF(K69="","",IF(K64="","",K64-(2*$L$48))) -> 
H71: Breite | K71: =IF(K69="","",IF(K65="","",K65-(2*$L$48))) -> 
K72: =IF(K70="","",IF(K71="","",IF(K69="","",$N72/$N$1-1))) ->  | L72: =IF(K70="","",IF(K71="","",IF(K69="","",$N72/$N$1+1))) ->  | N72: =K69*K70*K71 ->  | O72: =IF(K72="",0,K72) -> 0 | P72: =IF(L72="",0,L72) -> 0
H74: Total Portionen/Stück | K74: =IF($L$48="","",SUM(O54:O72)) ->  | L74: =IF($L$48="","",SUM(P54:P72)) -> 

Sheet Torten-Portionen
A1: Torten-Portionen | L1: 225
A2: =Änderungsnachweis!A1 -> © 2016-2021 V08 | Einfach Backen - Marcel Paa
A5: Boden Durchmesser | B5: 6 | D5: 8 | F5: 10 | H5: 12 | J5: 14
B6: Anzahl Portionen | D6: Anzahl Portionen | F6: Anzahl Portionen | H6: Anzahl Portionen | J6: Anzahl Portionen
B7: min | C7: max | D7: min | E7: max | F7: min | G7: max | H7: min | I7: max | J7: min | K7: max
A8: 4 | B8: 1 | C8: =(($A8/2)*($A8/2)*3.14*B$5/$L$1)+1 -> 1.334933333 | D8: 1 | E8: =(($A8/2)*($A8/2)*3.14*D$5/$L$1)+1 -> 1.446577778 | F8: 1 | G8: =(($A8/2)*($A8/2)*3.14*F$5/$L$1)+1 -> 1.558222222 | H8: 1 | I8: =(($A8/2)*($A8/2)*3.14*H$5/$L$1)+1 -> 1.669866667 | J8: 1 | K8: =(($A8/2)*($A8/2)*3.14*J$5/$L$1)+1 -> 1.781511111
A9: 6 | B9: =(($A9/2)*($A9/2)*3.14*B$5/$L$1) -> 0.7536 | C9: 1.7536 | D9: =(($A9/2)*($A9/2)*3.14*D$5/$L$1) -> 1.0048 | E9: 2.0048 | F9: 1 | G9: 2.256 | H9: =(($A9/2)*($A9/2)*3.14*H$5/$L$1)-1 -> 0.5072 | I9: 2.5072 | J9: =(($A9/2)*($A9/2)*3.14*J$5/$L$1)-1 -> 0.7584 | K9: 2.7584
A10: 8 | B10: =(($A10/2)*($A10/2)*3.14*B$5/$L$1) -> 1.339733333 | C10: 2.339733333 | D10: =(($A10/2)*($A10/2)*3.14*D$5/$L$1)-1 -> 0.7863111111 | E10: 2.786311111 | F10: =(($A10/2)*($A10/2)*3.14*F$5/$L$1)-1 -> 1.232888889 | G10: 3.232888889 | H10: 1.679466667 | I10: 3.679466667 | J10: 2.126044444 | K10: 4.126044444
A11: 10 | B11: =(($A11/2)*($A11/2)*3.14*B$5/$L$1)-1 -> 1.093333333 | C11: 3.093333333 | D11: 1.791111111 | E11: 3.791111111 | F11: 2.488888889 | G11: 4.488888889 | H11: 3.186666667 | I11: 5.186666667 | J11: 3.884444444 | K11: 5.884444444
A12: 12 | B12: 2.0144 | C12: 4.0144 | D12: 3.0192 | E12: 5.0192 | F12: 4.024 | G12: 6.024 | H12: 5.0288 | I12: 7.0288 | J12: 6.0336 | K12: 8.0336
A13: 14 | B13: 3.102933333 | C13: 5.102933333 | D13: 4.470577778 | E13: 6.470577778 | F13: 5.838222222 | G13: 7.838222222 | H13: 7.205866667 | I13: 9.205866667 | J13: 8.573511111 | K13: 10.57351111
A14: 16 | B14: 4.358933333 | C14: 6.358933333 | D14: 6.145244444 | E14: 8.145244444 | F14: 7.931555556 | G14: 9.931555556 | H14: 9.717866667 | I14: 11.71786667 | J14: 11.50417778 | K14: 13.50417778
A15: 18 | B15: 5.7824 | C15: 7.7824 | D15: 8.0432 | E15: 10.0432 | F15: 10.304 | G15: 12.304 | H15: 12.5648 | I15: 14.5648 | J15: 14.8256 | K15: 16.8256
A16: 20 | B16: 7.373333333 | C16: 9.373333333 | D16: 10.16444444 | E16: 12.16444444 | F16: 12.95555556 | G16: 14.95555556 | H16: 15.74666667 | I16: 17.74666667 | J16: 18.53777778 | K16: 20.53777778
A17: 22 | B17: 9.131733333 | C17: 11.13173333 | D17: 12.50897778 | E17: 14.50897778 | F17: 15.88622222 | G17: 17.88622222 | H17: 19.26346667 | I17: 21.26346667 | J17: 22.64071111 | K17: 24.64071111
A18: 24 | B18: 11.0576 | C18: 13.0576 | D18: 15.0768 | E18: 17.0768 | F18: 19.096 | G18: 21.096 | H18: 23.1152 | I18: 25.1152 | J18: 27.1344 | K18: 29.1344
A19: 26 | B19: 13.15093333 | C19: 15.15093333 | D19: 17.86791111 | E19: 19.86791111 | F19: 22.58488889 | G19: 24.58488889 | H19: 27.30186667 | I19: 29.30186667 | J19: 32.01884444 | K19: 34.01884444
A20: 28 | B20: 15.41173333 | C20: 17.41173333 | D20: 20.88231111 | E20: 22.88231111 | F20: 26.35288889 | G20: 28.35288889 | H20: 31.82346667 | I20: 33.82346667 | J20: 37.29404444 | K20: 39.29404444
A21: 30 | B21: 17.84 | C21: 19.84 | D21: 24.12 | E21: 26.12 | F21: 30.4 | G21: 32.4 | H21: 36.68 | I21: 38.68 | J21: 42.96 | K21: 44.96
A22: 32 | B22: 20.43573333 | C22: 22.43573333 | D22: 27.58097778 | E22: 29.58097778 | F22: 34.72622222 | G22: 36.72622222 | H22: 41.87146667 | I22: 43.87146667 | J22: 49.01671111 | K22: 51.01671111
A23: 34 | B23: 23.19893333 | C23: 25.19893333 | D23: 31.26524444 | E23: 33.26524444 | F23: 39.33155556 | G23: 41.33155556 | H23: 47.39786667 | I23: 49.39786667 | J23: 55.46417778 | K23: 57.46417778
A24: 36 | B24: 26.1296 | C24: 28.1296 | D24: 35.1728 | E24: 37.1728 | F24: 44.216 | G24: 46.216 | H24: 53.2592 | I24: 55.2592 | J24: 62.3024 | K24: 64.3024
A25: 38 | B25: 29.22773333 | C25: 31.22773333 | D25: 39.30364444 | E25: 41.30364444 | F25: 49.37955556 | G25: 51.37955556 | H25: 59.45546667 | I25: 61.45546667 | J25: 69.53137778 | K25: 71.53137778
A26: 40 | B26: 32.49333333 | C26: 34.49333333 | D26: 43.65777778 | E26: 45.65777778 | F26: 54.82222222 | G26: 56.82222222 | H26: 65.98666667 | I26: 67.98666667 | J26: 77.15111111 | K26: 79.15111111
A27: 42 | B27: 35.9264 | C27: 37.9264 | D27: 48.2352 | E27: 50.2352 | F27: 60.544 | G27: 62.544 | H27: 72.8528 | I27: 74.8528 | J27: 85.1616 | K27: 87.1616
A28: 44 | B28: 39.52693333 | C28: 41.52693333 | D28: 53.03591111 | E28: 55.03591111 | F28: 66.54488889 | G28: 68.54488889 | H28: 80.05386667 | I28: 82.05386667 | J28: 93.56284444 | K28: 95.56284444
A29: 46 | B29: 43.29493333 | C29: 45.29493333 | D29: 58.05991111 | E29: 60.05991111 | F29: 72.82488889 | G29: 74.82488889 | H29: 87.58986667 | I29: 89.58986667 | J29: 102.3548444 | K29: 104.3548444
A30: 48 | B30: 47.2304 | C30: 49.2304 | D30: 63.3072 | E30: 65.3072 | F30: 79.384 | G30: 81.384 | H30: 95.4608 | I30: 97.4608 | J30: 111.5376 | K30: 113.5376
A31: 50 | B31: 51.33333333 | C31: 53.33333333 | D31: 68.77777778 | E31: 70.77777778 | F31: 86.22222222 | G31: 88.22222222 | H31: 103.6666667 | I31: 105.6666667 | J31: 121.1111111 | K31: 123.1111111

Sheet FAQ
A1: FAQ (Frequently Asked Questions) | E1: 225
A2: =Änderungsnachweis!A1 -> © 2016-2021 V08 | Einfach Backen - Marcel Paa
A4: Allgemein
A5: · | B5: Was geschieht, wenn ich auf den Knopf "Eingaben löschen" drücke? Dadurch läuft im Hintergrund ein Makro ab, welches alle Deine gemachten Eingaben löscht, so dass Du wieder eine leere/neue Mappe für Deine Berechnungen zur Verfügung hast.
A6: · | B6: Warum funktionieren bei mir der Knopf "Eingaben löschen" nicht? Vermutlich hast Du das Excel geöffnet, ohne die Makros zu aktivieren; Bitte schliesse Excel und öffne es erneut, indem Du auf "Makros aktivieren" klickst.
A7: · | B7: Warum sind die Mappen schreibgeschützt? Um zu verhindern, dass versehentlich die sehr komplexen Formeln gelöscht werden, wurden die Mappe geschützt; dies ist vor allem auch für die Sicherheit für Dich als Benutzer und um einen Support-Aufwand zu vermeiden/minimieren.
A8: · | B8: Warum sind einzelne Zellen heller und andere dunkel markiert/hinterlegt? In den hell hinterlegten Feldern kannst Du Deine Eingaben machen, welche dann in den dunkel hinterlegten Feldern berechnet werden. Die dunklen Felder können nicht bearbeitet werden.
A9: Mappe Umrechnung
A10: · | B10: Wie werden die Zutaten der Kuchen für anderen Kuchenformen berechnet? Als Grundlage dient das Volumen des Kuchens gemäss Originalrezept; dieses wird in das Verhältnis des Kuchenvolumens des Wunschrezeptes gesetzt und so die Zutaten entsprechend berechnet.
A11: Mappe Portionen-Kalkulator
A12: · | B12: Wofür dient diese Mappe? Diese Mappe wurde als Arbeitserleichterung erstellt, damit Du Deine Torte hier "bauen" kannst: hier kannst Du mit den Tortengrössen (Höhe, Durchmesser, Länge, Breite) "spielen", um herauszufinden, welche Grösse Du effektiv benötigst. Je nach Eingaben werden die Anzahl Portionen/Stück aufgrund der Volumen der gewählten Kuchen errechnet.
A13: Mappe Torten-Kalkulator
A14: · | B14: Wofür dient diese Mappe? Diese Mappe wurde als Arbeitserleichterung erstellt, damit Du Deine Torte hier "bauen" kannst: oft kommt es z.B. vor, dass Du die Anzahl Portionen/Stück kennst, aber keine Idee hast, wie gross die Torte sein muss: hier gibst Du die Anzahl Portionen und die angenommene Höhe der Torte ein, und Du bekommst einen Vorschlag zum Durchmesser bzw. Länge/Breite der Torte.
A15: Mappe Torten-Aufbau
A16: · | B16: Wofür dient diese Mappe? Hier kannst Du die Grösse Deine Wunschtorte berechnen: gib den Durchmesser (bzw. Länge/Breite) der untersten Torte, die Höhe jeder einzelnen Torte und den gewünschten seitlichen Abstand bis zur nächsten Torte ein und es wird Dir der Durchmesser (bzw. Länge/Breite) pro Torte inkl. Anzahl Portionen automatisch errechnet.
A17: Mappe Torten-Portionen
A18: · | B18: Wozu dient diese Mappe? Hier findest Du eine Liste verschiedener Torten mit Durchmesser und Höhe, wo Du die Anzahl Portionen ablesen kannst. Diese Mappe dient nur als Hilfe - hier sind keine Eingaben möglich.
A19: Systemvoraussetzungen
A20: · | B20: Welches sind die Systemvoraussetzungen um mit diesem Tool arbeiten zu können? Benötigte Office-Applikation: Windows Office MS Excel 2007 Dieses Tool wurde unter Windows 8.1 mit 8.00 GB Arbeitsspeicher, auf einem 64-Bit-Betriebssystem erstellt.
A21: · | B21: Läuft dieses Tool auch auf Macintosh? NEIN Dieses Tool wurde NICHT auf Macintosh getestet und ist nicht kompatibel. Zur Zeit ist auch keine "Übersetzung" für Macintosh geplant.
A22: Support
A23: · | B23: Gibt es dieses Tool auch in anderen Sprachen (Französisch, Italienisch, Englisch)? NEIN, dieses Tool wurde ausschliesslich auf Deutsch erstellt - eine Übersetzung in andere Sprachen ist zur Zeit auch nicht geplant.
A24: · | B24: Wie wurde dieses Tool getestet? Dieses Tool wurde mehreren Hobby-Konditoren/Cake Designern zu Testzwecken zur Verfügung gestellt; die daraus gefundenen Anpassungs- bzw. Änderungswünsche wurden laufend aufgenommen und die Nutzung optimiert.
A25: · | B25: Gibt es eine Supportstelle, wenn ich irgendwelche Fragen/Probleme mit bzw. zum Tool habe? Bei Fragen und/oder Problemen stehe ich Dir selbstverständlich gerne zur Verfügung: Grundsätzlich allerdings habe ich keine Kapazität, um irgendwelche Support-Aufgaben zu übernehmen | Einmal durch den Benutzer überschriebene Formeln werden durch mich nicht wieder hergestellt.

Sheet Änderungsnachweis (hidden)
A1: =F1 -> © 2016-2021 V08 | Einfach Backen - Marcel Paa | E1: =MAX(E3:E29) -> 8 | F1: =CONCATENATE("© ", D10," V0",E1," | Einfach Backen - Marcel Paa") -> © 2016-2021 V08 | Einfach Backen - Marcel Paa
A2: Version | B2: Datum | C2: Bemerkung
A3: 1 | B3: 08.12.2016 | C3: Ersterstellung durch Marcel Paa (Einfach Backen) | D3: =CONCATENATE(RIGHT(B$3,4),"-",RIGHT(B$9,4)) -> 2016-2020 | E3: =A3 -> 1
A4: 2 | B4: 10.12.2016 | C4: Update durch Vreny Keller - Umrechnung: Re-Design der gesamten Datei - Umrechnung: Aufnahme des Makros zur Löschung der Eingabne - Umrechnung: Aufnahme der Portionenberechnung in Rubrik 1 und Rubrik 2 - Umrechnung: Automatisierung zur Übernahme des Umrechnungsfaktors von Rubrik 3 in Rubrik 4 - Umrechnung: Aufnahme der Rubrik 5 Portionen-Kalkulator - Umrechnung: Aufnahme der Rubrik 6 Torten-Kalkulator - Umrechnung: Optimierung einzelner Berechnungsformeln - Umrechnung: Aufnahme der Beschreibung der Arbeitsschritte - Torten-Portionen: Aufnahme der Mappe mit automatischer Berechnung | D4: 2016-2020 | E4: =A4 -> 2
A5: 3 | B5: 13.12.2016 | C5: Update durch Vreny Keller - Aufnahme eines Begrüssungsfensters - Torten-Aufbau: Aufnahme der Mappe mit automatischer Berechnung - FAQ: Aufname der Mappe "FAQ (Frequently Asked Questions)" | D5: 2016-2020 | E5: 3
A6: 4 | B6: 29.12.2016 | C6: Update durch Vreny Keller - Umrechnung: Rubrik 1 und 2 - Formeln im Bereich Tortenportionen optimiert, Anzahl Portionen summiert - Torten-Aufbau: diverse Erklärungen/Beschreibungen aufgenommen | D6: 2016-2020 | E6: 4
A7: 5 | B7: 31.12.2016 | C7: Update durch Vreny Keller - Aufnahme eines Verabschiedungsfensters - Tortenaufbau: Hinweise auf Dessertbuffet aufgenommen - Umrechnung: Rubrik 5 Portionen-Kalkulator in eine separate Mappe verschoben - Umrechnung: Rubrik 6 Torten-Kalkulator in eine separate Mappe verschoben - FAQ: div. weitere Erklärungen aufgenommen - Inhalt: Begrüssung und Inhaltsverzeichnis aufgenommen - Alle Mappen: automatischer Passwortschutz beim Anklicken einer Mappe => nur nicht gesperrte Zellen können bearbeitet werden | D7: 2016-2020 | E7: 5
A8: 6 | B8: 14.01.2019 | C8: Update durch Vreny Keller - neues Logo, neue Farben | D8: 2016-2020 | E8: 6
A9: 7 | B9: 01.03.2020 | C9: Update durch Vreny Keller - Corporate Identity, neue Schriftart "Contax Sans 55" | D9: 2016-2020 | E9: =A9 -> 7
A10: 8 | B10: 06.03.2021 | C10: Update durch Vreny Keller - Corporate Identity, neues Logo MP eingefügt - auf allen Seiten einen Knofp "Berechnen" aufgenommen | D10: =CONCATENATE(RIGHT(B$3,4),"-",RIGHT(B10,4)) -> 2016-2021 | E10: =A10 -> 8
